Cogmind - Beta 14 @@@ ROGUE MODE // 2025.04.28 @ 21:07:25 Player: Spark774 Result: Destroyed by as-38615 with Assembled Blade Performance ------------- Evolutions (0) 0 Regions Visited (0) 0 Robots Destroyed (0) 0 Value Destroyed (0) 0 Prototype IDs (0) 0 Alien Tech Used (0) 0 Bonus (0) 0 TOTAL SCORE: 0 Bonus ------- None Cogmind --------- Core Integrity 0/250 Matter 298/300 Energy 99/100 System Corruption 0% Temperature Cool (0) Movement Core (100) Ox1 Location -11/Scrapyard Parts ------- > --- POWER (1) -------- (None) > --- PROPULSION (2) --- (None) > --- UTILITY (2) ------ Small Storage Unit > --- WEAPON (2) ------- (None) > --- INVENTORY (8) ---- Ion Engine Light Treads Light Treads Aluminum Leg Aluminum Leg Peak State ------------ > --- POWER ------------ Ion Engine > --- PROPULSION ------- Wheel Compact Wheel > --- UTILITY ---------- Small Storage Unit > --- WEAPON ----------- Medium Laser Assault Rifle > --- INVENTORY -------- (None) [Rating: 6] Favorites ----------- Power Ion Engine Engine Ion Engine Propulsion Compact Wheel Wheel Compact Wheel Utility Small Storage Unit Storage Small Storage Unit Weapon Assault Rifle Energy Gun Medium Laser Ballistic Gun Assault Rifle Build | -11 ------- Run | Yrd Slots Evolved . | . Power . | . Propulsion . | . Utility . | . Weapon . | . Parts Attached 7 | 7 Power 1 | 1 Engine 1 | 1 Core . | . Reactor . | . Propulsion 2 | 2 Treads . | . Leg . | . Wheel 2 | 2 Hover . | . Flight . | . Utility 1 | 1 Device . | . Storage 1 | 1 Processor . | . Hackware . | . Protection . | . Artifact . | . Weapon 3 | 3 Energy Gun 2 | 2 Energy Cannon . | . Ballistic Gun 1 | 1 Ballistic Cannon . | . Launcher . | . Special Weapon . | . Impact Weapon . | . Slashing Weapon . | . Piercing Weapon . | . Special Melee Weapon . | . Unidentified Prototypes . | . Parts Lost 6 | 6 Power 1 | 1 Propulsion 2 | 2 Utility . | . Weapon 3 | 3 Highest Loss Streak 6 | 6 To Critical Strikes . | . Average Slot Usage (%) . | . Peak Build Rating 6 | 6 Average Rating 5 | 5 On Entrance . | . Naked Turns . | . Heaviest Build 14 | 14 Greatest Support 26 | 26 Greatest Overweight (x) 2 | 2 Average Overweight (x) . | . Largest Inventory Capacity 8 | 8 Average Capacity 7 | 7 Most Carried 6 | 6 Average Carried 5 | 5 Final Capacity 8 | 8 Final Carried 5 | 5 Class Distribution -------------------- None Dominant Class ---------------- None Resources | -11 ----------- Run | Yrd Matter Collected 271 | 271 Remotely . | . Salvage Created 17 | 17 Parts . | . Haulers Intercepted . | . Recyclers Shooed . | . Parts Field Recycled . | . Retrieved Matter . | . Parts Self-Destructed . | . Prevented . | . Kills | -11 ------- Run | Yrd Combat Hostiles Destroyed 1 | 1 Guns 1 | 1 Classes Destroyed 1 | 1 Assembled 1 | 1 Best Kill Streak 1 | 1 Combat Bots Only 1 | 1 Max Kills in Single Turn 1 | 1 Gunslinging . | . Exploded . | . Melee . | . Uniques/NPCs Destroyed . | . Combat | -11 -------- Run | Yrd Hostile Shots Fired 43 | 43 Missed 11 | 11 Damage Taken 691 | 691 Core 266 | 266 Absorbed by Shields . | . Core Remaining (%) . | . Volleys Fired 11 | 11 Largest 2 | 2 Hottest 70 | 70 Shots Fired 19 | 19 Gun 19 | 19 Cannon . | . Launcher . | . Special . | . Kinetic 11 | 11 Thermal 7 | 7 Explosive . | . Electromagnetic 1 | 1 Robot Hit Streak 3 | 3 Robot Miss Streak 4 | 4 Penetration Max . | . Secondary Targets . | . Shots Hit Robots 8 | 8 Core Hits 4 | 4 Critical Kills . | . Critical Parts Destroyed . | . Critical Strikes 1 | 1 Burn 1 | 1 Melee Attacks . | . Impact . | . Slashing . | . Piercing . | . Sneak Attacks . | . Combat Hostiles . | . Follow-up Attacks . | . Damage Inflicted 110 | 110 Guns 110 | 110 Cannons . | . Explosions . | . Melee . | . Ramming . | . Kinetic 61 | 61 Thermal 38 | 38 Explosive . | . Electromagnetic 11 | 11 Impact . | . Slashing . | . Piercing . | . Highest Corruption . | . Average Corruption . | . Corruption Purged . | . Corruption Blocked . | . Overload Shots . | . Overflow Damage . | . Projectiles . | . Explosions . | . Melee . | . Knockbacks . | . Impact . | . Kinetic . | . Secondary . | . Self-Inflicted Damage . | . Shots . | . Rammed . | . Targets Rammed . | . Kicked . | . Crushed . | . Highest Temperature 54 | 54 Average Temperature 25 | 25 Received Heat Transfer . | . Siege Activations . | . Robots Corrupted . | . Combat Hostiles . | . Parts Fried . | . Impact Corruptions . | . Robots Melted . | . Combat Hostiles . | . Parts Melted . | . Heat Transferred 185 | 185 Parts Sabotaged . | . Parts Stolen . | . Parts Stripped . | . Power Chain Reactions . | . Alert | -11 ------- Run | Yrd Peak Influence 15 | 15 Initial . | . Average . | . Maximum Alert Level . | . Low Security (%) 100 | 100 Level 1 . | . Level 2 . | . Level 3 . | . Level 4 . | . Level 5 . | . High Security . | . Max Security . | . Squads Dispatched . | . Investigation . | . Extermination . | . Reinforcement . | . Assault . | . Garrison . | . Intercept . | . Searches Triggered . | . Construction Impeded . | . Haulers Reinforced . | . Active Scanning Responses . | . Cargo Convoy Interrupts . | . Stealth | -11 --------- Run | Yrd Distress Signals . | . Communications Jammed . | . Distress Signals . | . Times Spotted 21 | 21 Peak Tracking Total 17 | 17 Tactical Retreats 1 | 1 Traps | -11 ------- Run | Yrd Traps Triggered . | . Indirectly . | . Trap Hack Attempts . | . Triggered . | . Disarmed . | . Reprogrammed . | . Reused . | . Traps Extracted . | . Installed . | . Triggered . | . Machines | -11 ---------- Run | Yrd Machines Disabled . | . Max in Single Turn . | . Machines Repaired . | . Machines Dismantled . | . Machines Sabotaged . | . Overloaded Fab Kills . | . Hacking | -11 --------- Run | Yrd Machines Accessed . | . Terminals . | . Fabricators . | . Repair Stations . | . Recycling Units . | . Scanalyzers . | . Garrison Access . | . Total Hacks . | . Successful . | . Failed . | . Catastrophic . | . Database Lockouts . | . Manual . | . Terminals . | . Fabricators . | . Repair Stations . | . Recycling Units . | . Scanalyzers . | . Garrison Access . | . Terminal Hacks . | . Fabricator Hacks . | . Repair Station Hacks . | . Recycling Unit Hacks . | . Scanalyzer . | . Garrison Access Hacks . | . Unauthorized Hacks . | . Terminals . | . Fabricators . | . Repair Stations . | . Recycling Units . | . Scanalyzers . | . Garrison Access . | . Data Cores Recovered . | . Used . | . Hacking Detections . | . Full Trace Events . | . Feedback Events . | . Feedback Blocked . | . Robot Schematics Acquired . | . Robots Built . | . Authchips . | . Time . | . Total Robot Build Rating . | . Part Schematics Acquired . | . Parts Built . | . Authchips . | . Time . | . Total Part Build Rating . | . Parts Repaired . | . Time . | . Parts Recycled . | . Recycled Matter . | . Retrieved Matter . | . Retrieved Components . | . Parts Scanalyzed . | . Part Schematics Acquired . | . Parts Damaged . | . Bothacking | -11 ------------ Run | Yrd Used RIF Installer . | . Robots Hacked . | . Non-combat . | . Combat . | . Robot Hacks Applied . | . Relay Couplers Released . | . Fabnet Peak Effective % . | . Robots Rewired . | . Allies Hacked . | . Hacks Repelled . | . Allies | -11 -------- Run | Yrd Total Allies . | . Largest Group . | . Highest-Rated Group . | . Highest-Rated Ally . | . Total Orders . | . Ally Attacks . | . Total Damage . | . Kills . | . Allies Corrupted . | . Allies Melted . | . Intel | -11 ------- Run | Yrd Robot Analysis Total . | . Derelict Logs Recovered . | . Drone Launches . | . Drone Recoveries . | . Exploration | -11 ------------- Run | Yrd Turns Passed 2153 | 2153 Spaces Moved 304 | 304 Core 8 | 8 Treads . | . Legs . | . Wheels 296 | 296 Hover . | . Flight . | . Fastest Speed 50 | 50 Average Speed 90 | 90 Slowest Speed 150 | 150 Overloaded Moves . | . Propulsion Burnouts . | . Robots Hopped . | . Cave-ins Triggered . | . Exploration Rate (%) 39 | 39 Regions Visited . Branch Regions . Pre-discovered Areas . | . Known Exits Taken . | . Unknown Exits Taken . | . Scrap Searched . | . Spaces Dug . | . Terrain Destroyed . | . Melee . | . Projectile . | . AOE . | . Terrain Rammed . | . Walls Destroyed . | . Machines Disabled . | . Actions | -11 --------- Run | Yrd Total 2161 | 2161 Wait 1832 | 1832 Move 304 | 304 Hop . | . Pick Up 7 | 7 Fast Attach 5 | 5 Attach 2 | 2 Detach . | . Swap . | . Drop . | . Fire 11 | 11 Melee . | . Ram . | . Kick . | . Crush . | . Escape Stasis . | . Rewire . | . Trap . | . Miscellaneous . | . Route ------- -11/Scrapyard (discovered 1 exit: [*Mat]) History --------- Turn | Location | Event 14 | -11/Scrapyard | Discovered new exit (range 16) 2111 | -11/Scrapyard | Assembled infested the area 2140 | -11/Scrapyard | Core integrity fell below 50% 2151 | -11/Scrapyard | Core integrity fell below 20% 2154 | -11/Scrapyard | Destroyed by as-38615 with Assembled Blade Last Messages --------------- crushing effect. 02145_ as-51069 destroyed. 02145_ as-57319 destroyed. 02146_ D-53 Grenadier system terminally corrupted. 02146_ Ion Engine destroyed. 02146_ Com. Wheel destroyed. 02146_ as-60370 destroyed. 02146_ as-43798 destroyed. 02146_ as-22222 destroyed. 02146_ as-18649 destroyed. 02146_ as-99063 destroyed. 02146_ as-82079 destroyed. 02146_ as-11233 destroyed. 02147_ Acquired 8 matter. 02148_ as-11887 destroyed. 02148_ Assault Rifle destroyed. 02148_ as-97214 destroyed. 02149_ D-53 Grenadier destroyed. 02151_ The unstable cave ceiling collapses. Map ----- +----------------------------------------------------+ | | | | | | | | | | | | | | | | | | | | | | | | | | | ?????????????????????????????????????????????????? | | ?????????????????????????????????????????????????? | | ?????????????????????????????????????????????????? | | ?????????????????????????????????????????????????? | | ?????????????????????????????????????????????????? | | ??????????????????????####??##???????????????????? | | ?????????????????????## "## ##??????????????????? | | ?????????????????????# " #??????????????????? | | ?????????????????????# " #??????????????????? | | ?????????????????????# " #??????????????????? | | ?????????????????????## " #??????????????????? | | ?????????????????????# a #??????????????????? | | ?????????????????????# @a #???????????????????? | | ????????????????????### a ##???????????????????? | | ????????????????????# # aa ############????????? | | ????????????????????## % ########?? | | ?????????????????????# = ## ### | | ?????????????????????# ! ## ## | | ?????????????????????## = %] ## | | ??????????????????????# = ## ## | | ??????????????????????### % ############## ## | | ??????????????########## ##########???## ### | | ??????????????# ##??# #?# | | ??????????????# #### #??# #?# | | ??????????????# #??## ####### #??# #?# | | ??????????????# #???#####?????## #??# #?# | | ????######????# #??????????????# #??# #?# | | ??### ###### #??????????????# #??# ### | | ??# # #??????????????# ####### ### | | ??# #??????????????# | | ??### #### # #??????????????# | | ###### #############??????????????# | | # # #????????????????# ### | | # #????????????????###?# | | # # #????????????????????# | | # #????????????????????# | | ## # #????????????????????# | +----------------------------------------------------+ Best States ------------- Heat Dissipation 25 Energy Generation 10 Energy Capacity 250 Matter Stores 298 Matter Capacity 300 Sight Range 16 Terrain Scan Density 10 Evasion (%) 42 Item Schematics ----------------- None Robot Schematics ------------------ None Fabricated ------------ Nothing Alien Tech Used ----------------- None Achievements -------------- Curiosity Killed The Cat Challenges ------------ None Game ------ Seed LightChargeDatajack Manual? 0 Play Time 00:12:04 Cumulative 19.5 hours Start 2025.04.28 @ 21:01:17 End 2025.04.28 @ 21:07:25 Sessions 0 Manual Loads 0 Difficulty Rogue Special Mode None Game No. 38 Rogue 9 Adventurer 0 Explorer 29 Win Type - Total 0 Types 0/0/0/0/0/0/0/0/0 Lore% 5 Gallery% 29 Achievement% 23 Wizard Run 0 Options --------- Layout 1 ASCII 0 Keyboard 0 Movement Mouse Keybinds 0 Fullscreen 0 Font 42/X11 Map View 50x35 Zoom Use 0% Tactical HUD 1 Map Filters NONE Filters SATURATION(60) Steam 1 RUN: fbd83bf1-7eab-4457-b5fc-f4e2b29bd0ef